[Event "Titled Tuesday Blitz May 11 2021"]
[White "Lintchevski, Daniil"]
[Black "Costachi, Mihnea"]
[WhiteFideId "4171055"]
[BlackFideId "1217518"]
[WhiteElo "2505"]
[BlackElo "2479"]
[Result "1-0"]
[Round "04"]
[TimeControl "180+1"]
[Date "2021.05.11"]
[WhiteClock "0:00:30"]
[BlackClock "0:00:33"]

1. e4 {[%clk 0:02:53]}  e5 {[%clk 0:02:59]} 2. Nf3 {[%clk 0:02:51]}  Nf6 {[%clk 0:03:00]} 3. Nc3 {[%clk 0:02:50]}  Nc6 {[%clk 0:03:00]} 4. d4 {[%clk 0:02:50]}  exd4 {[%clk 0:03:01]} 5. Nxd4 {[%clk 0:02:50]}  Bb4 {[%clk 0:03:01]} 6. Nxc6 {[%clk 0:02:51]}  bxc6 {[%clk 0:03:02]} 7. Bd3 {[%clk 0:02:51]}  d5 {[%clk 0:03:02]} 8. exd5 {[%clk 0:02:52]}  O-O {[%clk 0:03:03]} 9. O-O {[%clk 0:02:52]}  cxd5 {[%clk 0:03:04]} 10. h3 {[%clk 0:02:47]}  h6 {[%clk 0:03:03]} 11. Qf3 {[%clk 0:02:47]}  Re8 {[%clk 0:02:55]} 12. Bf4 {[%clk 0:02:21]}  c6 {[%clk 0:02:23]} 13. Rad1 {[%clk 0:02:16]}  Bd6 {[%clk 0:02:21]} 14. Ne2 {[%clk 0:02:14]}  Rb8 {[%clk 0:02:20]} 15. b3 {[%clk 0:02:14]}  Be6 {[%clk 0:02:09]} 16. Nd4 {[%clk 0:02:12]}  Qc7 {[%clk 0:02:04]} 17. Bxh6 {[%clk 0:02:01]}  Be5 {[%clk 0:01:44]} 18. Nxe6 {[%clk 0:01:55]}  Rxe6 {[%clk 0:01:45]} 19. Bc1 {[%clk 0:01:50]}  Rbe8 {[%clk 0:01:45]} 20. Bf5 {[%clk 0:01:46]}  R6e7 {[%clk 0:01:44]} 21. Bg5 {[%clk 0:01:47]}  Qd6 {[%clk 0:01:39]} 22. c4 {[%clk 0:01:45]}  d4 {[%clk 0:01:38]} 23. g3 {[%clk 0:01:43]}  g6 {[%clk 0:01:38]} 24. Bd3 {[%clk 0:01:37]}  Re6 {[%clk 0:01:38]} 25. Kg2 {[%clk 0:01:18]}  Nd7 {[%clk 0:01:29]} 26. Rde1 {[%clk 0:01:15]}  Bg7 {[%clk 0:01:27]} 27. Rxe6 {[%clk 0:01:14]}  Rxe6 {[%clk 0:01:28]} 28. Bf4 {[%clk 0:01:06]}  Ne5 {[%clk 0:01:25]} 29. Bxe5 {[%clk 0:01:04]}  Qxe5 {[%clk 0:01:25]} 30. Rd1 {[%clk 0:01:02]}  f5 {[%clk 0:01:23]} 31. Rd2 {[%clk 0:01:01]}  Qe1 {[%clk 0:01:19]} 32. Re2 {[%clk 0:01:01]}  Rxe2 {[%clk 0:01:19]} 33. Qxe2 {[%clk 0:01:01]}  Qxe2 {[%clk 0:01:17]} 34. Bxe2 {[%clk 0:01:02]}  c5 {[%clk 0:01:16]} 35. f4 {[%clk 0:01:02]}  Kf7 {[%clk 0:01:13]} 36. Kf3 {[%clk 0:01:02]}  Kf6 {[%clk 0:01:13]} 37. g4 {[%clk 0:01:01]}  fxg4+ {[%clk 0:01:12]} 38. hxg4 {[%clk 0:01:02]}  g5 {[%clk 0:01:13]} 39. fxg5+ {[%clk 0:00:58]}  Kxg5 {[%clk 0:01:13]} 40. Ke4 {[%clk 0:00:58]}  Bf8 {[%clk 0:01:08]} 41. Bd1 {[%clk 0:00:50]}  Be7 {[%clk 0:01:07]} 42. a4 {[%clk 0:00:37]}  a5 {[%clk 0:01:01]} 43. Kd5 {[%clk 0:00:37]}  Kf4 {[%clk 0:01:01]} 44. Kc6 {[%clk 0:00:36]}  Ke3 {[%clk 0:01:01]} 45. g5 {[%clk 0:00:34]}  Kd2 {[%clk 0:00:58]} 46. g6 {[%clk 0:00:31]}  Bf8 {[%clk 0:00:57]} 47. Bg4 {[%clk 0:00:27]}  Kc2 {[%clk 0:00:56]} 48. Kb5 {[%clk 0:00:23]}  Kxb3 {[%clk 0:00:53]} 49. Be2 {[%clk 0:00:24]}  Kc3 {[%clk 0:00:52]} 50. Kxa5 {[%clk 0:00:24]}  d3 {[%clk 0:00:51]} 51. Bxd3 {[%clk 0:00:24]}  Kxd3 {[%clk 0:00:51]} 52. Kb5 {[%clk 0:00:24]}  Ke4 {[%clk 0:00:37]} 53. a5 {[%clk 0:00:24]}  Kf5 {[%clk 0:00:36]} 54. a6 {[%clk 0:00:24]}  Kxg6 {[%clk 0:00:37]} 55. a7 {[%clk 0:00:25]}  Kf5 {[%clk 0:00:38]} 56. a8=Q {[%clk 0:00:25]}  Be7 {[%clk 0:00:35]} 57. Qd5+ {[%clk 0:00:26]}  Kf6 {[%clk 0:00:36]} 58. Kc6 {[%clk 0:00:27]}  Kg7 {[%clk 0:00:36]} 59. Kd7 {[%clk 0:00:28]}  Bf6 {[%clk 0:00:35]} 60. Ke6 {[%clk 0:00:29]}  Bd4 {[%clk 0:00:35]} 61. Qf5 {[%clk 0:00:30]}  Kh6 {[%clk 0:00:34]} 62. Kf7 {[%clk 0:00:30]}  Bf6 {[%clk 0:00:33]} 63. Qg6# {[%clk 0:00:30]} 1-0


[Site "https://www.chess.com"]

[Event "Titled Tuesday Blitz May 11 2021"]
[White "Lobanov, Sergei"]
[Black "Artemiev, Vladislav"]
[WhiteFideId "24183750"]
[BlackFideId "24101605"]
[WhiteElo "2392"]
[BlackElo "2783"]
[Result "0-1"]
[Round "04"]
[TimeControl "180+1"]
[Date "2021.05.11"]
[WhiteClock "0:00:04"]
[BlackClock "0:01:59"]

1. e4 {[%clk 0:03:00]}  g6 {[%clk 0:02:59]} 2. d4 {[%clk 0:03:00]}  Bg7 {[%clk 0:02:59]} 3. Nc3 {[%clk 0:03:01]}  c6 {[%clk 0:02:59]} 4. Nf3 {[%clk 0:02:54]}  d5 {[%clk 0:02:59]} 5. h3 {[%clk 0:02:55]}  dxe4 {[%clk 0:03:00]} 6. Nxe4 {[%clk 0:02:56]}  Nf6 {[%clk 0:03:00]} 7. Nxf6+ {[%clk 0:02:55]}  exf6 {[%clk 0:03:00]} 8. Bd3 {[%clk 0:02:51]}  O-O {[%clk 0:02:59]} 9. O-O {[%clk 0:02:51]}  Re8 {[%clk 0:02:57]} 10. c4 {[%clk 0:02:42]}  Na6 {[%clk 0:02:56]} 11. Bf4 {[%clk 0:02:34]}  Nc7 {[%clk 0:02:52]} 12. Bc2 {[%clk 0:01:55]}  f5 {[%clk 0:02:42]} 13. Bg5 {[%clk 0:01:35]}  Qd7 {[%clk 0:02:22]} 14. Ne5 {[%clk 0:01:23]}  Qd6 {[%clk 0:02:20]} 15. Bb3 {[%clk 0:00:36]}  c5 {[%clk 0:02:04]} 16. Ba4 {[%clk 0:00:28]}  Rf8 {[%clk 0:02:04]} 17. Re1 {[%clk 0:00:15]}  f6 {[%clk 0:02:01]} 18. Bf4 {[%clk 0:00:04]}  fxe5 {[%clk 0:02:00]} 19. Bxe5 {[%clk 0:00:04]}  Bxe5 {[%clk 0:01:59]} 0-1


[Site "https://www.chess.com"]

[Event "Titled Tuesday Blitz May 11 2021"]
[White "Ortiz Suarez, Isan Reynaldo"]
[Black "dropstoneDP"]
[WhiteFideId "3507165"]
[WhiteElo "2539"]
[BlackElo "2891"]
[Result "0-1"]
[Round "04"]
[TimeControl "180+1"]
[Date "2021.05.11"]
[WhiteClock "0:01:17"]
[BlackClock "0:02:21"]

1. e4 {[%clk 0:02:27]}  e6 {[%clk 0:02:58]} 2. d4 {[%clk 0:02:27]}  d5 {[%clk 0:02:58]} 3. Nd2 {[%clk 0:02:28]}  a6 {[%clk 0:02:58]} 4. Ngf3 {[%clk 0:02:27]}  c5 {[%clk 0:02:58]} 5. c3 {[%clk 0:02:25]}  cxd4 {[%clk 0:02:58]} 6. Nxd4 {[%clk 0:02:20]}  Nc6 {[%clk 0:02:53]} 7. Nxc6 {[%clk 0:02:20]}  bxc6 {[%clk 0:02:54]} 8. Bd3 {[%clk 0:02:20]}  Bd6 {[%clk 0:02:54]} 9. O-O {[%clk 0:02:19]}  Ne7 {[%clk 0:02:54]} 10. Qe2 {[%clk 0:02:18]}  O-O {[%clk 0:02:54]} 11. Nf3 {[%clk 0:02:14]}  Ng6 {[%clk 0:02:49]} 12. e5 {[%clk 0:02:12]}  Bc7 {[%clk 0:02:49]} 13. Bg5 {[%clk 0:02:02]}  f6 {[%clk 0:02:46]} 14. exf6 {[%clk 0:02:01]}  gxf6 {[%clk 0:02:47]} 15. Bh6 {[%clk 0:02:00]}  Rf7 {[%clk 0:02:45]} 16. Nd4 {[%clk 0:01:41]}  Qd6 {[%clk 0:02:32]} 17. g3 {[%clk 0:01:34]}  c5 {[%clk 0:02:21]} 18. Qf3 {[%clk 0:01:17]} 0-1


[Site "https://www.chess.com"]

[Event "Titled Tuesday Blitz May 11 2021"]
[White "Praggnanandhaa R"]
[Black "Molina, Roberto Junio Brito"]
[WhiteFideId "25059530"]
[BlackFideId "2109450"]
[WhiteElo "2555"]
[BlackElo "2402"]
[Result "1-0"]
[Round "04"]
[TimeControl "180+1"]
[Date "2021.05.11"]
[WhiteClock "0:00:12"]
[BlackClock "0:00:28"]

1. Nf3 {[%clk 0:03:00]}  d5 {[%clk 0:02:58]} 2. e3 {[%clk 0:02:59]}  c6 {[%clk 0:02:58]} 3. c4 {[%clk 0:02:56]}  Nf6 {[%clk 0:02:57]} 4. d4 {[%clk 0:02:56]}  Bf5 {[%clk 0:02:56]} 5. Nc3 {[%clk 0:02:54]}  e6 {[%clk 0:02:56]} 6. Nh4 {[%clk 0:02:53]}  Bg4 {[%clk 0:02:55]} 7. Qb3 {[%clk 0:02:51]}  Qc7 {[%clk 0:02:49]} 8. h3 {[%clk 0:02:49]}  Bh5 {[%clk 0:02:48]} 9. g4 {[%clk 0:02:49]}  Bg6 {[%clk 0:02:49]} 10. Nxg6 {[%clk 0:02:47]}  hxg6 {[%clk 0:02:49]} 11. Bg2 {[%clk 0:02:47]}  Nbd7 {[%clk 0:02:46]} 12. Bd2 {[%clk 0:02:46]}  Be7 {[%clk 0:02:44]} 13. Rc1 {[%clk 0:02:45]}  Qb6 {[%clk 0:02:42]} 14. c5 {[%clk 0:02:25]}  Qxb3 {[%clk 0:02:38]} 15. axb3 {[%clk 0:02:26]}  a6 {[%clk 0:02:39]} 16. f4 {[%clk 0:02:24]}  Bd8 {[%clk 0:02:25]} 17. b4 {[%clk 0:02:22]}  Bc7 {[%clk 0:02:24]} 18. Ra1 {[%clk 0:02:13]}  O-O {[%clk 0:02:23]} 19. Ke2 {[%clk 0:02:11]}  Nh7 {[%clk 0:02:18]} 20. h4 {[%clk 0:02:08]}  f6 {[%clk 0:01:58]} 21. g5 {[%clk 0:02:07]}  Kf7 {[%clk 0:01:54]} 22. Raf1 {[%clk 0:01:52]}  Rfe8 {[%clk 0:01:53]} 23. Kd1 {[%clk 0:01:40]}  f5 {[%clk 0:01:43]} 24. Bf3 {[%clk 0:01:33]}  Nhf8 {[%clk 0:01:43]} 25. Kc2 {[%clk 0:01:30]}  Ra7 {[%clk 0:01:36]} 26. Ra1 {[%clk 0:01:27]}  Raa8 {[%clk 0:01:36]} 27. Ne2 {[%clk 0:01:16]}  Ra7 {[%clk 0:01:28]} 28. Nc1 {[%clk 0:01:16]}  Raa8 {[%clk 0:01:16]} 29. Nd3 {[%clk 0:01:15]}  Rab8 {[%clk 0:01:13]} 30. Rh2 {[%clk 0:01:09]}  Ra8 {[%clk 0:01:13]} 31. Be2 {[%clk 0:01:06]}  Reb8 {[%clk 0:01:13]} 32. Bc3 {[%clk 0:00:59]}  Rc8 {[%clk 0:01:11]} 33. Nc1 {[%clk 0:00:54]}  Rd8 {[%clk 0:01:11]} 34. Nb3 {[%clk 0:00:54]}  Re8 {[%clk 0:01:11]} 35. Rah1 {[%clk 0:00:51]}  Reb8 {[%clk 0:01:10]} 36. Ra1 {[%clk 0:00:35]}  Rc8 {[%clk 0:01:09]} 37. Rhh1 {[%clk 0:00:35]}  Rd8 {[%clk 0:01:09]} 38. Ra4 {[%clk 0:00:35]}  Re8 {[%clk 0:01:10]} 39. Rha1 {[%clk 0:00:35]}  Rab8 {[%clk 0:01:10]} 40. Na5 {[%clk 0:00:34]}  Bxa5 {[%clk 0:01:10]} 41. bxa5 {[%clk 0:00:28]}  Rbc8 {[%clk 0:01:10]} 42. Rb4 {[%clk 0:00:27]}  Rc7 {[%clk 0:01:11]} 43. Ra3 {[%clk 0:00:27]}  Re7 {[%clk 0:01:11]} 44. Rab3 {[%clk 0:00:26]}  Nb8 {[%clk 0:00:56]} 45. Be1 {[%clk 0:00:22]}  Ke8 {[%clk 0:00:56]} 46. h5 {[%clk 0:00:16]}  gxh5 {[%clk 0:00:55]} 47. g6 {[%clk 0:00:16]}  Kd7 {[%clk 0:00:30]} 48. Rxb7 {[%clk 0:00:11]}  Rxb7 {[%clk 0:00:28]} 49. Rxb7+ {[%clk 0:00:12]} 1-0


[Site "https://www.chess.com"]

[Event "Titled Tuesday Blitz May 11 2021"]
[White "Salinas Herrera, Pablo"]
[Black "Kovalev, Vladislav"]
[WhiteFideId "3407128"]
[BlackFideId "13504398"]
[WhiteElo "2541"]
[BlackElo "2573"]
[Result "1-0"]
[Round "04"]
[TimeControl "180+1"]
[Date "2021.05.11"]
[WhiteClock "0:00:07"]
[BlackClock "0:00:13"]

1. d4 {[%clk 0:03:00]}  Nf6 {[%clk 0:03:00]} 2. Bf4 {[%clk 0:03:01]}  d5 {[%clk 0:02:57]} 3. e3 {[%clk 0:03:01]}  c5 {[%clk 0:02:57]} 4. Nf3 {[%clk 0:03:01]}  e6 {[%clk 0:02:54]} 5. Nbd2 {[%clk 0:03:00]}  Bd6 {[%clk 0:02:51]} 6. c3 {[%clk 0:03:01]}  Qc7 {[%clk 0:02:35]} 7. Bxd6 {[%clk 0:02:55]}  Qxd6 {[%clk 0:02:36]} 8. Ne5 {[%clk 0:02:55]}  Nbd7 {[%clk 0:02:33]} 9. f4 {[%clk 0:02:55]}  b6 {[%clk 0:02:33]} 10. Bd3 {[%clk 0:02:55]}  Bb7 {[%clk 0:02:33]} 11. Qf3 {[%clk 0:02:55]}  Rc8 {[%clk 0:02:26]} 12. g4 {[%clk 0:02:52]}  h6 {[%clk 0:02:15]} 13. h4 {[%clk 0:02:52]}  Qe7 {[%clk 0:01:34]} 14. g5 {[%clk 0:02:47]}  Nxe5 {[%clk 0:01:25]} 15. fxe5 {[%clk 0:02:24]}  Ne4 {[%clk 0:01:25]} 16. gxh6 {[%clk 0:01:38]}  Nxd2 {[%clk 0:01:10]} 17. Kxd2 {[%clk 0:01:37]}  Rxh6 {[%clk 0:01:10]} 18. h5 {[%clk 0:01:32]}  Kd7 {[%clk 0:00:56]} 19. Rag1 {[%clk 0:01:30]}  f5 {[%clk 0:00:50]} 20. exf6 {[%clk 0:01:01]}  Rxf6 {[%clk 0:00:50]} 21. Qg4 {[%clk 0:01:01]}  Rf2+ {[%clk 0:00:48]} 22. Kc1 {[%clk 0:01:01]}  cxd4 {[%clk 0:00:39]} 23. Qxd4 {[%clk 0:00:51]}  Rf7 {[%clk 0:00:17]} 24. Rg6 {[%clk 0:00:43]}  Rcf8 {[%clk 0:00:14]} 25. Qe5 {[%clk 0:00:34]}  Rf6 {[%clk 0:00:11]} 26. Rhg1 {[%clk 0:00:25]}  Rxg6 {[%clk 0:00:11]} 27. Rxg6 {[%clk 0:00:26]}  Rf6 {[%clk 0:00:12]} 28. Qb8 {[%clk 0:00:09]}  Kc6 {[%clk 0:00:12]} 29. a4 {[%clk 0:00:06]}  Rxg6 {[%clk 0:00:12]} 30. Bb5+ {[%clk 0:00:06]}  Kc5 {[%clk 0:00:13]} 31. b4# {[%clk 0:00:07]} 1-0


[Site "https://www.chess.com"]

[Event "Titled Tuesday Blitz May 11 2021"]
[White "Sarana, Alexey"]
[Black "Belous, Vladimir"]
[WhiteFideId "24133795"]
[BlackFideId "4174003"]
[WhiteElo "2629"]
[BlackElo "2583"]
[Result "0-1"]
[Round "04"]
[TimeControl "180+1"]
[Date "2021.05.11"]
[WhiteClock "0:00:02"]
[BlackClock "0:00:35"]

1. e4 {[%clk 0:03:00]}  c5 {[%clk 0:03:00]} 2. Nf3 {[%clk 0:02:58]}  Nc6 {[%clk 0:03:00]} 3. d4 {[%clk 0:02:58]}  cxd4 {[%clk 0:03:01]} 4. Nxd4 {[%clk 0:02:59]}  e5 {[%clk 0:03:02]} 5. Nb5 {[%clk 0:02:59]}  d6 {[%clk 0:03:02]} 6. N1c3 {[%clk 0:03:00]}  a6 {[%clk 0:03:02]} 7. Na3 {[%clk 0:03:00]}  b5 {[%clk 0:03:03]} 8. Nd5 {[%clk 0:03:01]}  Nce7 {[%clk 0:03:03]} 9. c4 {[%clk 0:03:00]}  Nxd5 {[%clk 0:03:04]} 10. cxd5 {[%clk 0:03:01]}  f5 {[%clk 0:03:04]} 11. exf5 {[%clk 0:02:43]}  Bxf5 {[%clk 0:03:03]} 12. Nc2 {[%clk 0:02:44]}  Nf6 {[%clk 0:02:26]} 13. Ne3 {[%clk 0:02:43]}  Bd7 {[%clk 0:02:26]} 14. Bd3 {[%clk 0:02:30]}  Be7 {[%clk 0:02:27]} 15. O-O {[%clk 0:02:31]}  O-O {[%clk 0:02:27]} 16. Bd2 {[%clk 0:02:28]}  Qb6 {[%clk 0:02:09]} 17. a3 {[%clk 0:02:21]}  Kh8 {[%clk 0:01:57]} 18. Bc3 {[%clk 0:02:17]}  a5 {[%clk 0:01:44]} 19. Qd2 {[%clk 0:02:14]}  Nh5 {[%clk 0:01:41]} 20. g3 {[%clk 0:02:09]}  Bg5 {[%clk 0:01:36]} 21. Kg2 {[%clk 0:01:54]}  Nf6 {[%clk 0:01:22]} 22. Bc2 {[%clk 0:01:07]}  b4 {[%clk 0:01:10]} 23. axb4 {[%clk 0:01:05]}  axb4 {[%clk 0:01:11]} 24. Rxa8 {[%clk 0:01:00]}  Rxa8 {[%clk 0:01:11]} 25. Bxb4 {[%clk 0:01:00]}  Bxe3 {[%clk 0:01:12]} 26. fxe3 {[%clk 0:00:51]}  Nxd5 {[%clk 0:01:12]} 27. Be4 {[%clk 0:00:19]}  Nxe3+ {[%clk 0:01:07]} 28. Qxe3 {[%clk 0:00:19]}  Qxe3 {[%clk 0:01:04]} 29. Bxa8 {[%clk 0:00:20]}  h5 {[%clk 0:00:57]} 30. Rf2 {[%clk 0:00:11]}  Bh3+ {[%clk 0:00:51]} 31. Kxh3 {[%clk 0:00:06]}  Qxf2 {[%clk 0:00:52]} 32. Bxd6 {[%clk 0:00:06]}  Qf5+ {[%clk 0:00:46]} 33. Kg2 {[%clk 0:00:06]}  e4 {[%clk 0:00:36]} 34. Bf4 {[%clk 0:00:03]}  g5 {[%clk 0:00:36]} 35. Bd2 {[%clk 0:00:01]}  Qf3+ {[%clk 0:00:36]} 36. Kh3 {[%clk 0:00:02]}  Qg4+ {[%clk 0:00:35]} 0-1


[Site "https://www.chess.com"]

[Event "Titled Tuesday Blitz May 11 2021"]
[White "Sasikiran, Krishnan"]
[Black "Oliveira, Silvio Eduardo"]
[WhiteFideId "5004985"]
[BlackFideId "2111560"]
[WhiteElo "2552"]
[BlackElo "2302"]
[Result "1/2-1/2"]
[Round "04"]
[TimeControl "180+1"]
[Date "2021.05.11"]
[WhiteClock "0:00:05"]
[BlackClock "0:00:25"]

1. e4 {[%clk 0:03:00]}  e5 {[%clk 0:02:59]} 2. Nf3 {[%clk 0:03:00]}  Nc6 {[%clk 0:02:59]} 3. Bb5 {[%clk 0:03:00]}  Nf6 {[%clk 0:03:00]} 4. d3 {[%clk 0:03:00]}  d6 {[%clk 0:03:00]} 5. O-O {[%clk 0:02:58]}  g6 {[%clk 0:03:00]} 6. c3 {[%clk 0:02:56]}  Bg7 {[%clk 0:03:00]} 7. Re1 {[%clk 0:02:56]}  O-O {[%clk 0:03:00]} 8. Nbd2 {[%clk 0:02:56]}  a6 {[%clk 0:03:00]} 9. Ba4 {[%clk 0:02:55]}  Re8 {[%clk 0:03:01]} 10. h3 {[%clk 0:02:50]}  h6 {[%clk 0:03:01]} 11. Nf1 {[%clk 0:02:49]}  b5 {[%clk 0:03:02]} 12. Bc2 {[%clk 0:02:44]}  a5 {[%clk 0:03:02]} 13. Ng3 {[%clk 0:02:43]}  Rb8 {[%clk 0:03:00]} 14. d4 {[%clk 0:02:26]}  exd4 {[%clk 0:02:46]} 15. cxd4 {[%clk 0:02:25]}  Nb4 {[%clk 0:02:46]} 16. Bb1 {[%clk 0:02:22]}  c5 {[%clk 0:02:46]} 17. d5 {[%clk 0:02:18]}  Nh7 {[%clk 0:02:40]} 18. a3 {[%clk 0:02:08]}  Na6 {[%clk 0:02:39]} 19. Ra2 {[%clk 0:02:05]}  a4 {[%clk 0:02:20]} 20. Be3 {[%clk 0:01:59]}  Ng5 {[%clk 0:02:09]} 21. Nxg5 {[%clk 0:01:49]}  hxg5 {[%clk 0:02:10]} 22. Qc1 {[%clk 0:01:47]}  g4 {[%clk 0:02:10]} 23. hxg4 {[%clk 0:01:43]}  Bxg4 {[%clk 0:02:10]} 24. Bg5 {[%clk 0:01:37]}  Bf6 {[%clk 0:02:01]} 25. Bh6 {[%clk 0:01:29]}  c4 {[%clk 0:01:58]} 26. Bc2 {[%clk 0:01:21]}  Nc5 {[%clk 0:01:57]} 27. Qf4 {[%clk 0:01:19]}  Bd7 {[%clk 0:01:50]} 28. Qxd6 {[%clk 0:01:11]}  Bd4 {[%clk 0:01:31]} 29. Be3 {[%clk 0:01:06]}  Rb6 {[%clk 0:01:24]} 30. Qf4 {[%clk 0:01:03]}  Rf6 {[%clk 0:01:13]} 31. Qh4 {[%clk 0:00:46]}  Bxe3 {[%clk 0:00:48]} 32. Rxe3 {[%clk 0:00:45]}  Re5 {[%clk 0:00:22]} 33. f4 {[%clk 0:00:35]}  g5 {[%clk 0:00:22]} 34. fxg5 {[%clk 0:00:33]}  Rg6 {[%clk 0:00:21]} 35. Nf5 {[%clk 0:00:28]}  Qb6 {[%clk 0:00:19]} 36. Qf2 {[%clk 0:00:22]}  Nd3 {[%clk 0:00:18]} 37. Bxd3 {[%clk 0:00:21]}  cxd3 {[%clk 0:00:19]} 38. Rxd3 {[%clk 0:00:21]}  Qxf2+ {[%clk 0:00:19]} 39. Kxf2 {[%clk 0:00:21]}  Bxf5 {[%clk 0:00:19]} 40. exf5 {[%clk 0:00:21]}  Rxf5+ {[%clk 0:00:20]} 41. Ke3 {[%clk 0:00:19]}  Rd6 {[%clk 0:00:20]} 42. Ke4 {[%clk 0:00:18]}  Rxg5 {[%clk 0:00:20]} 43. b3 {[%clk 0:00:17]}  f6 {[%clk 0:00:20]} 44. bxa4 {[%clk 0:00:16]}  Re5+ {[%clk 0:00:21]} 45. Kf3 {[%clk 0:00:16]}  Rexd5 {[%clk 0:00:20]} 46. Rxd5 {[%clk 0:00:15]}  Rxd5 {[%clk 0:00:21]} 47. a5 {[%clk 0:00:15]}  Rd4 {[%clk 0:00:21]} 48. Rb2 {[%clk 0:00:14]}  Ra4 {[%clk 0:00:21]} 49. Rxb5 {[%clk 0:00:14]}  Rxa3+ {[%clk 0:00:22]} 50. Kf4 {[%clk 0:00:14]}  Kf7 {[%clk 0:00:22]} 51. g4 {[%clk 0:00:11]}  Kg6 {[%clk 0:00:21]} 52. Rc5 {[%clk 0:00:07]}  Ra4+ {[%clk 0:00:20]} 53. Kf3 {[%clk 0:00:06]}  Ra3+ {[%clk 0:00:20]} 54. Ke4 {[%clk 0:00:07]}  Ra4+ {[%clk 0:00:20]} 55. Kf3 {[%clk 0:00:07]}  Ra3+ {[%clk 0:00:20]} 56. Kf4 {[%clk 0:00:06]}  Ra4+ {[%clk 0:00:21]} 57. Kg3 {[%clk 0:00:06]}  Ra3+ {[%clk 0:00:21]} 58. Kh4 {[%clk 0:00:06]}  Ra1 {[%clk 0:00:22]} 59. Rc7 {[%clk 0:00:05]}  Rh1+ {[%clk 0:00:22]} 60. Kg3 {[%clk 0:00:05]}  Rg1+ {[%clk 0:00:23]} 61. Kf3 {[%clk 0:00:05]}  Ra1 {[%clk 0:00:23]} 62. Ra7 {[%clk 0:00:04]}  Ra3+ {[%clk 0:00:24]} 63. Kf4 {[%clk 0:00:04]}  Ra4+ {[%clk 0:00:24]} 64. Kg3 {[%clk 0:00:05]}  Ra3+ {[%clk 0:00:24]} 65. Kh4 {[%clk 0:00:05]}  Ra1 {[%clk 0:00:25]} 66. Ra8 {[%clk 0:00:05]}  Rh1+ {[%clk 0:00:25]} 67. Kg3 {[%clk 0:00:06]}  Rg1+ {[%clk 0:00:25]} 68. Kf3 {[%clk 0:00:06]}  Rf1+ {[%clk 0:00:26]} 69. Kg2 {[%clk 0:00:06]}  Ra1 {[%clk 0:00:26]} 70. a6 {[%clk 0:00:06]}  Kg7 {[%clk 0:00:26]} 71. Kg3 {[%clk 0:00:06]}  Kg6 {[%clk 0:00:26]} 72. a7 {[%clk 0:00:06]}  Kg7 {[%clk 0:00:26]} 73. Kf4 {[%clk 0:00:06]}  Ra4+ {[%clk 0:00:26]} 74. Kf5 {[%clk 0:00:06]}  Ra6 {[%clk 0:00:26]} 75. Ke4 {[%clk 0:00:06]}  Ra5 {[%clk 0:00:26]} 76. Kd4 {[%clk 0:00:06]}  Ra4+ {[%clk 0:00:25]} 77. Kc5 {[%clk 0:00:06]}  Ra1 {[%clk 0:00:24]} 78. Kb6 {[%clk 0:00:06]}  Rb1+ {[%clk 0:00:24]} 79. Kc7 {[%clk 0:00:07]}  Rc1+ {[%clk 0:00:25]} 80. Kd7 {[%clk 0:00:06]}  Rd1+ {[%clk 0:00:25]} 81. Kc6 {[%clk 0:00:06]}  Rc1+ {[%clk 0:00:25]} 82. Kd5 {[%clk 0:00:05]} 1/2-1/2


[Site "https://www.chess.com"]

[Event "Titled Tuesday Blitz May 11 2021"]
[White "Ten Hertog, Hugo"]
[Black "Kamsky, Gata"]
[WhiteFideId "1026356"]
[BlackFideId "2000024"]
[WhiteElo "2493"]
[BlackElo "2644"]
[Result "0-1"]
[Round "04"]
[TimeControl "180+1"]
[Date "2021.05.11"]
[WhiteClock "0:00:08"]
[BlackClock "0:00:13"]

1. e4 {[%clk 0:03:00]}  c5 {[%clk 0:02:55]} 2. Nc3 {[%clk 0:03:00]}  Nc6 {[%clk 0:02:52]} 3. Bb5 {[%clk 0:02:58]}  Nd4 {[%clk 0:02:50]} 4. Bc4 {[%clk 0:02:58]}  g6 {[%clk 0:02:46]} 5. Nge2 {[%clk 0:02:57]}  Bg7 {[%clk 0:02:45]} 6. O-O {[%clk 0:02:57]}  d6 {[%clk 0:02:38]} 7. Nxd4 {[%clk 0:02:53]}  cxd4 {[%clk 0:02:37]} 8. Ne2 {[%clk 0:02:54]}  e6 {[%clk 0:02:16]} 9. d3 {[%clk 0:02:50]}  Ne7 {[%clk 0:02:15]} 10. Bf4 {[%clk 0:02:29]}  O-O {[%clk 0:02:05]} 11. Qd2 {[%clk 0:02:27]}  d5 {[%clk 0:01:43]} 12. Bb3 {[%clk 0:02:23]}  dxe4 {[%clk 0:01:37]} 13. dxe4 {[%clk 0:02:23]}  Nc6 {[%clk 0:01:30]} 14. Rad1 {[%clk 0:02:22]}  Re8 {[%clk 0:01:23]} 15. Bh6 {[%clk 0:02:16]}  e5 {[%clk 0:00:52]} 16. Bxg7 {[%clk 0:02:14]}  Kxg7 {[%clk 0:00:51]} 17. f4 {[%clk 0:02:15]}  Bg4 {[%clk 0:00:47]} 18. Bd5 {[%clk 0:01:25]}  f6 {[%clk 0:00:38]} 19. fxe5 {[%clk 0:01:08]}  Nxe5 {[%clk 0:00:38]} 20. Nxd4 {[%clk 0:00:37]}  Bxd1 {[%clk 0:00:36]} 21. Rxd1 {[%clk 0:00:38]}  Qb6 {[%clk 0:00:35]} 22. c3 {[%clk 0:00:38]}  Rad8 {[%clk 0:00:32]} 23. Kh1 {[%clk 0:00:38]}  f5 {[%clk 0:00:23]} 24. Qg5 {[%clk 0:00:15]}  fxe4 {[%clk 0:00:19]} 25. Nf5+ {[%clk 0:00:12]}  Kh8 {[%clk 0:00:18]} 26. Nh6 {[%clk 0:00:10]}  Kg7 {[%clk 0:00:16]} 27. c4 {[%clk 0:00:07]}  Qf6 {[%clk 0:00:14]} 28. Qe3 {[%clk 0:00:08]}  Qh4 {[%clk 0:00:13]} 0-1


[Site "https://www.chess.com"]